[Event "Mitropa Cup Women 2022"]
[Site "Corte"]
[Date "2022.05.08"]
[Round "9.2"]
[White "Medic, Mirjana"]
[Black "Nemcova, Karin"]
[Result "1/2-1/2"]
[ECO "D05"]
[WhiteElo "2167"]
[BlackElo "2181"]
[Annotator "TA"]
[PlyCount "107"]
[EventDate "2022.04.30"]
[EventType "team-tourn"]
[EventCountry "FRA"]
[SourceTitle "playchess.com"]
[Source "ChessBase"]
[SourceQuality "1"]
[WhiteTeam "Croatia"]
[BlackTeam "Czech Republic"]
[WhiteTeamCountry "CRO"]
[BlackTeamCountry "CZE"]
[TimeControl "40/5400+30:1800+30"]

{[%evp 13,107,6,23,12,7,0,37,11,51,25,53,23,56,25,30,10,21,-29,-28,-29,-35,-33,-36,-29,-21,-22,-12,-31,-25,-36,-35,-36,-27,-30,-25,-32,-31,-42,-52,-109,-42,-134,-114,-154,-157,-150,-150,-147,-159,-158,-121,-167,-163,-163,0,-16,0,0,0,0,0,0,0,0,0,0,0,0,108,115,115,95,204,192,266,216,203,20,23,35,35,35,46,0,0,0,0,11,310,297,286,271,1608,1406,29996,1543]} 1. d4 {[%emt 0:00:35]} e6 {[%emt 0:00:18]} 2. Nf3 {[%emt 0:01:28]} d5 {[%emt 0:00:55]} 3. e3 {[%emt 0:01:23]} Nf6 {[%emt 0:00:15]} 4. Bd3 {[%emt 0:00:24]} c5 {[%emt 0:00:39]} 5. b3 {[%emt 0:00:19]} Nc6 {[%emt 0:00:39]} 6. O-O {[%emt 0:01:23]} Bd6 {[%emt 0:01:24]} 7. Bb2 {[%emt 0:01:24]} O-O {[%emt 0:01:19]} 8. c4 {[%emt 0:11:05] D05: Colle System with ...e6.} cxd4 {[%emt 0:04:11]} 9. exd4 {[%emt 0:00:18]} a6 {[%emt 0:11:42]} 10. Nbd2 {[%emt 0:02:33] White is slightly better.} (10. c5 $5 {[%cal Rc5d6]} Bc7 11. Nc3 $11) 10... Bd7 {[%emt 0:05:03][%cal Bc8d7,Bd7e8,Be8c6,Bc6b7][%mdl 32]} 11. Ne5 {[%emt 0:04:46] [#]} (11. c5 $5 {[%cal Rc5d6]} Be7 12. a3 $11) 11... Rc8 $146 {[%emt 0:10:00]} ({Predecessor:} 11... Nb4 12. Bb1 b5 13. c5 Bc7 14. f4 Be8 15. Qe1 Nd7 16. Ndf3 Nxe5 17. dxe5 Nc6 18. Bxh7+ Kh8 19. Ng5 g6 20. Qh4 Kg7 21. Bxg6 Rh8 22. Qg4 {1-0 (23) Huber,F (2007)-Kronschnabl,M (1751) Bayerisch Eisenstein 2018}) 12. Rc1 {[%emt 0:04:18]} Be8 {[%emt 0:13:20]} 13. Re1 {[%emt 0:10:33]} (13. c5 $5 {[%cal Rc5d6]} Be7 14. Re1 $14) 13... dxc4 {[%emt 0:01:48]} 14. Ndxc4 {[%emt 0:00:56]} Bb4 {[%emt 0:00:34][%csl LRd4,LRe1]} 15. Re2 {[%emt 0:06:28]} (15. Rf1 $142) 15... b5 $11 {[%emt 0:01:58]} 16. Nxc6 {[%emt 0:06:01]} Bxc6 {[%emt 0:00:43]} 17. Ne5 {[%emt 0:03:19]} Bb7 {[%emt 0:00:18]} 18. Rxc8 {[%emt 0:01:49]} Qxc8 {[%emt 0:02:06]} 19. Rc2 {[%emt 0:04:23]} Qd8 {[%emt 0:01:34]} 20. Be2 {[%emt 0:08:54]} Qa5 {[%emt 0:06:02]} 21. Qa1 {[%emt 0:03:24]} Be4 {[%emt 0:03:25]} 22. Bd3 {[%emt 0:00:49]} Bxd3 {[%emt 0:02:42]} 23. Nxd3 {[%emt 0:00:03]} Nd5 {[%emt 0:00:47][%cal Bf6d5,Bd5f4,Bf4h3][%mdl 32]} 24. Rc6 {[%emt 0:04:33]} Be7 {[%emt 0:02:30]} 25. a3 {[%emt 0:04:05]} Qd2 {[%emt 0:02:05]} 26. Ne5 {[%emt 0:00:35]} (26. Ne1 $15) 26... Qe2 {[%emt 0:08:21]} (26... Nf4 $1 $17 {aiming for ...Bh4.} 27. b4 Bf6) 27. Nf3 {[%emt 0:04:53] Prevents Bh4.} (27. Qb1 $15) 27... Nf4 $17 {[%emt 0:08:30]} 28. Qb1 {[%emt 0:00:10] [#] Prevents Qe4.} Nh3+ $1 {[%emt 0:02:00][%mdl 512]} 29. gxh3 {[%emt 0:00:11] And now Kg2 would win.} Qxf3 {[%emt 0:00:05]} 30. Rc3 {[%emt 0:00:28]} Qd5 {[%emt 0:00:31]} 31. Qc2 {[%emt 0:02:23]} Bd6 {[%emt 0:02:24]} 32. Rc8 {[%emt 0:01:31]} (32. Rc6 $17) 32... Qg5+ $19 {[%emt 0:02:16]} 33. Kf1 {[%emt 0:00:20]} f5 $2 {[%emt 0:01:05]} (33... Bxh2 34. Rxf8+ Kxf8 35. Qc8+ Ke7 36. Qb7+ Kf6 37. d5+ Be5 38. dxe6 fxe6 39. h4 $17) ({Black should play} 33... Qh5 $19 34. Rxf8+ Bxf8) 34. d5 {[%emt 0:01:00]} exd5 {[%emt 0:01:56]} 35. Qc6 {[%emt 0:01:25][%csl LRa6,LRd5,LRd6][%cal Oc6d6]} Rxc8 {[%emt 0:01:26]} (35... Qd2 $2 36. Qxd6 $1 (36. Rxf8+ Bxf8 37. Qe6+ Kh8 $11) 36... Qd3+ 37. Kg1 (37. Kg2 Qe4+ 38. Kg1 Qe1+ 39. Kg2 Qe4+ 40. Kg1 Rxc8 $11) 37... Qb1+ 38. Bc1 Rxc8 39. Qe6+ Kf8 40. Qxc8+ $18) 36. Qxc8+ $11 {[%emt 0:00:03][%mdl 4096] Endgame KQB-KQB} Kf7 {[%emt 0:01:40]} 37. Qd7+ {[%emt 0:00:26]} Be7 {[%emt 0:00:51]} 38. Qxd5+ {[%emt 0:00:04]} Kg6 {[%emt 0:00:49]} 39. Qc6+ {[%emt 0:04:34]} Bf6 {[%emt 0:00:14]} 40. Qxa6 {[%emt 0:01:18] Threatens to win with Qe6.} f4 {[%emt 0:00:29]} (40... Qd2 $11 41. Bxf6 Qd1+ 42. Kg2 Qd5+ 43. f3 gxf6) 41. Bxf6 $1 $16 {[%emt 0:30:33]} gxf6 {[%emt 0:31:33] KQ-KQ} 42. Qe6 $1 {[%emt 0:01:44] Strongly threatening Qg8+.} Kh6 {[%emt 0:00:00]} (42... Qc5 $16 {keeps fighting.}) 43. Qe4 {[%emt 0:00:00]} f5 {[%emt 0:00:00]} (43... Qc5 $142 44. Qxf4+ Kg7 45. Qg4+ Kh8) 44. Qc6+ {[%emt 0:00:00]} Kh5 {[%emt 0:00:00] [#]} 45. Qf3+ $2 {[%emt 0:00:00]} (45. Qxb5 $6 f3 46. Qe8+ Kh4 $14) (45. a4 $1 $18 {[%cal Ra4a5]} bxa4 46. bxa4) 45... Kh4 $11 {[%emt 0:00:00]} 46. a4 {[%emt 0:00:00]} bxa4 {[%emt 0:00:00]} 47. bxa4 {[%emt 0:00:00]} Qh6 {[%emt 0:00:00]} 48. Qd3 {[%emt 0:00:00]} (48. Qb7 $14 {might be stronger.}) 48... Qe6 {[%emt 0:00:00]} 49. a5 {[%emt 0:00:00]} h5 {[%emt 0:00:00]} 50. a6 {[%emt 0:00:00] a7 would kill now.} Qa2 $2 {[%emt 0:00:00][%mdl 8192] [#]} (50... Qc6 $11) 51. Kg2 $1 $18 {[%emt 0:00:00][%cal Rd3d8]} (51. Qxf5 Qxa6+ 52. Kg1 Qa1+ 53. Kg2 Qa8+ 54. Kf1 Qa6+ 55. Kg2 Qa8+ 56. Kf1 Qh1+ 57. Ke2 Qxh2 $11) 51... Qg8+ {[%emt 0:00:00]} 52. Kf3 {[%emt 0:00:00]} Qg7 $2 {[%emt 0:00:00]} (52... Qa2 53. Kxf4 Qxf2+ 54. Qf3 Qd4+ 55. Kxf5 Qc5+ 56. Ke4 (56. Kg6 Qf5+ 57. Kxf5 $11) 56... Qe7+ 57. Kd5 Qd7+ 58. Kc5 Qe7+ 59. Kd5 Qd7+ 60. Kc5 Qc7+ 61. Qc6 Qxh2 62. Qa4+ Kxh3 63. Qb3+ (63. a7 Qe5+ 64. Kc4 Qe4+ 65. Kb5 Qe5+ 66. Kb6 Qe3+ 67. Kb7 Qe7+ 68. Kb6 Qd8+ 69. Kc5 Qg5+ 70. Kc6 Qf6+ 71. Kd7 Qf5+ 72. Kd6 Qf6+ 73. Kd7 Qf5+ 74. Kd8 Qg5+ 75. Ke8 Qg8+ 76. Ke7 Qg7+ 77. Ke8 Qg8+ 78. Ke7 Qg7+ 79. Kd8 Qg5+ 80. Ke8 Qg8+ $11) 63... Kh4 64. Qc4+ Kh3 65. Qe6+ Kh4 66. Qf6+ Kg4 67. Qg7+ Kh4 68. Qe7+ Kg4 69. Qg7+ Kh4 70. Qf6+ Kg4 71. Qg7+) 53. Kxf4 {[%emt 0:00:00] Intending Qg3+ and mate.} ({Not} 53. Qxf5 Qc3+ 54. Kg2 (54. Kxf4 Qc1+ 55. Ke5 Qc5+ 56. Ke6 Qc8+ 57. Ke5 Qc5+ 58. Kf4 Qc1+ 59. Kf3 Qc3+ 60. Ke4 Qb4+ 61. Ke3 Qe1+ 62. Kf4 Qc1+ $11) 54... Qg7+ 55. Kf1 (55. Kf3 Qc3+ 56. Kxf4 Qc1+ 57. Ke4 Qe1+ 58. Kd5 Qa5+ 59. Ke6 Qb6+ 60. Ke7 Qd8+ 61. Kxd8 $11) 55... Qa1+ 56. Kg2 Qg7+ 57. Kh1 (57. Kf3 Qc3+ 58. Kxf4 Qc1+ 59. Kf3 Qc3+ 60. Ke4 Qe1+ 61. Kf4 Qc1+ 62. Kf3 Qc3+ 63. Ke2 Qb2+ 64. Kf1 Qa1+ 65. Kg2 Qg7+ 66. Kh1 Qa1+ 67. Kg2 Qg7+ 68. Kh1 Qa1+ 69. Kg2 $11) 57... Qa1+ 58. Kg2 Qg7+ $11) 53... Qd4+ {[%emt 0:00:00]} 54. Qxd4 {[%mdl 32768] A wild game.  Weighted Error Value: White=0.19 (very precise) /Black=0.47. An unexpected result.} 1/2-1/2

[Event "Mitropa Cup Women 2022"]
[Site "Corte"]
[Date "2022.05.08"]
[Round "9.2"]
[White "Hund, Sarah"]
[Black "Nadzamova, Viktoria"]
[Result "0-1"]
[ECO "B22"]
[WhiteElo "2086"]
[BlackElo "2135"]
[Annotator "TA"]
[PlyCount "150"]
[EventDate "2022.04.30"]
[EventType "team-tourn"]
[EventCountry "FRA"]
[SourceTitle "playchess.com"]
[Source "ChessBase"]
[SourceQuality "1"]
[WhiteTeam "Switzerland"]
[BlackTeam "Slovakia"]
[WhiteTeamCountry "SUI"]
[BlackTeamCountry "SVK"]
[TimeControl "40/5400+30:1800+30"]

{[%evp 10,150,64,45,58,47,100,64,72,57,56,38,39,26,39,19,26,0,0,0,0,0,17,0,8,-43,-42,-78,-71,-142,-62,-102,-106,-103,-106,-126,-119,-129,-106,-114,-32,-134,-143,-203,-215,-223,-204,-233,-232,-327,-210,-365,-245,-219,-209,-241,-240,-258,-124,-231,-142,-241,-197,-242,-226,-250,-256,-307,-312,-316,-298,-303,-322,-316,-311,-305,-180,-208,-217,-442,-405,-360,-437,-475,-491,-1073,-1051,-1480,-1156,-1445,-1337,-1481,-1414,-1487,-1404,-1376,-1218,-1370,-1314,-29980,-29981,-29981,-29982,-29981,-29983,-29983,-29984,-29984,-29985,-29983,-1223,-1149,-1039,-6610,-6731,-5040,-725,-725,-725,-718,-435,-1772,-1742,-1647,-1558,-5021,-4124,-1797,-1802,-29968,-29969,-29979,-29980,-29980,-29981,-29981,-29982,-29988,-29989,-29989,-29989,-29989,-29987]} 1. e4 {[%emt 0:00:03]} c5 {[%emt 0:00:12]} 2. c3 {[%emt 0:00:13]} d6 {[%emt 0:15:04]} 3. d4 {[%emt 0:05:33]} cxd4 {[%emt 0:01:21]} 4. cxd4 {[%emt 0:00:38]} g6 {[%emt 0:04:33]} 5. Nc3 {[%emt 0:03:15]} Bg7 {[%emt 0:01:04]} 6. Nf3 {[%emt 0:02:46]} a6 {[%emt 0:03:55] B22: Sicilian: 2 c3.} 7. Bc4 {[%emt 0:03:04] 7.Bc4 scores better than 7.Be2.} e6 {[%emt 0:00:45]} (7... b5 $14 8. Bb3 (8. Bd5 Ra7 $14) 8... Nc6) 8. O-O {[%emt 0:04:44]} Ne7 {[%emt 0:01:12] White is slightly better.} 9. Re1 {[%emt 0:04:19]} O-O {[%emt 0:01:49] [#]} 10. Bb3 $146 {[%emt 0:01:38]} ({Predecessor:} 10. a4 Bd7 11. Bg5 Nbc6 12. Qd2 Re8 13. Rad1 Qc7 14. Ba2 Nb4 15. Bb3 Nbc6 16. Rc1 {1-0 (41) Lieder,G (1847)-Dittrich,T Berlin 2011}) 10... b5 {[%emt 0:05:21]} 11. Bg5 {[%emt 0:06:41]} h6 {[%emt 0:02:52]} 12. Be3 {[%emt 0:03:34]} Bb7 {[%emt 0:03:25]} 13. a3 {[%emt 0:01:23]} Nd7 {[%emt 0:04:20]} 14. Qd3 {[%emt 0:05:10]} Rc8 {[%emt 0:06:21]} 15. h3 {[%emt 0:02:46]} Nc6 {[%emt 0:04:31][%cal Be7c6,Bc6a5,Ba5c4][%mdl 32]} 16. Rad1 {[%emt 0:04:28]} Na5 {[%emt 0:02:19]} 17. Bc2 {[%emt 0:03:31]} (17. Ba2 $11) 17... Nc4 $15 {[%emt 0:01:21]} 18. Bc1 {[%emt 0:01:11] [#]} Qc7 $1 {[%emt 0:05:04][%cal Oc4a3]} 19. h4 {[%emt 0:13:01] [#]} (19. Bb3 $142) 19... h5 {[%emt 0:08:08]} (19... Nxa3 $1 $17 {[%mdl 512]} 20. Bb3 Nc4 21. Bxc4 Qxc4 22. Qxc4 Rxc4) 20. Ng5 {[%emt 0:02:47] [#]} Nxa3 $1 {[%emt 0:03:36][%mdl 512]} 21. Bb3 {[%emt 0:01:50]} Nc4 {[%emt 0:00:47]} 22. Ne2 {[%emt 0:01:54]} e5 {[%emt 0:02:22]} 23. Qh3 {[%emt 0:05:52]} Rce8 {[%emt 0:06:18]} 24. d5 {[%emt 0:02:57]} Bc8 {[%emt 0:00:35]} (24... Nc5 $17 25. Bc2 a5) 25. Qf3 {[%emt 0:01:46]} (25. Qc3 $15) 25... Nc5 $17 {[%emt 0:01:10]} 26. Bxc4 {[%emt 0:01:12]} (26. Bc2 $17 {keeps fighting.}) 26... bxc4 $19 {[%emt 0:00:01]} 27. Qc3 {[%emt 0:02:05]} f6 {[%emt 0:01:20]} 28. Nf3 {[%emt 0:03:13]} Nxe4 {[%emt 0:00:40]} 29. Qc2 {[%emt 0:00:52]} (29. Qa3 $142) 29... f5 {[%emt 0:04:45]} 30. Be3 $2 {[%emt 0:01:36]} (30. Ng5) 30... Nf6 {[%emt 0:01:14] aiming for ...f4.} 31. Ng5 {[%emt 0:01:58]} Ng4 {[%emt 0:03:47]} 32. Bd2 {[%emt 0:01:57]} Qc5 {[%emt 0:01:37][%csl LRd5,LRf2]} 33. Rf1 {[%emt 0:00:45]} Rf6 {[%emt 0:01:29]} ({Weaker is} 33... Qxd5 34. Bb4 Qb5 35. Bxd6 $17) (33... Bd7 $19 {has better winning chances. White must now prevent ...Bf6.} 34. Bc3 Rb8) 34. Bc3 {[%emt 0:01:24]} (34. b3 $17 {was necessary.}) 34... Bh6 {[%emt 0:01:38]} 35. Ng3 {[%emt 0:01:54]} (35. Qa4 $17 Rff8 36. Qc6) 35... Bb7 {[%emt 0:01:40]} 36. Qd2 {[%emt 0:00:58]} Rff8 {[%emt 0:00:43]} 37. Bb4 {[%emt 0:01:03]} Qb6 {[%emt 0:00:35]} 38. Qc3 {[%emt 0:01:24]} Nf6 {[%emt 0:00:49][%cal Bg4f6,Bf6d5,Bd5f4,Bf4h3][%mdl 32]} 39. Qa3 {[%emt 0:03:11]} Nxd5 {[%emt 0:00:31]} ({Inferior is} 39... Bxd5 40. Bxd6 Qc6 41. f3 $17 (41. Bxf8 $2 Bxf8 42. Qa2 Bxg2 $19)) 40. Bxd6 {[%emt 0:00:53]} Rf6 {[%emt 0:00:15]} 41. Bc5 {[%emt 0:01:19]} Qc6 {[%emt 0:00:39]} 42. f3 {[%emt 0:01:19]} Bxg5 {[%emt 0:07:23]} (42... Nf4 $142 {And now ...Nd3 would win.} 43. Be3 Bf8) 43. hxg5 {[%emt 0:00:08]} Rf7 {[%emt 0:00:32]} 44. Rc1 $2 {[%emt 0:03:45]} (44. Ne2 {is a better defense.}) 44... Nf4 {[%emt 0:03:58] Strongly threatening ...h4.} 45. Rxc4 {[%emt 0:03:42]} h4 {[%emt 0:00:13]} 46. Nh1 {[%emt 0:01:09]} h3 {[%emt 0:01:33]} 47. g3 {[%emt 0:01:05]} (47. Rxf4 $142 hxg2 48. Rh4 gxf1=N 49. Kxf1) 47... h2+ {[%emt 0:00:41]} 48. Kxh2 {[%emt 0:04:20]} Rh7+ {[%emt 0:00:13]} 49. Kg1 {[%emt 0:00:21]} Nh3+ {[%emt 0:02:18]} 50. Kg2 {[%emt 0:00:09]} e4 {[%emt 0:00:26]} 51. Rc3 {[%emt 0:04:43]} exf3+ {[%emt 0:01:06]} 52. Rfxf3 {[%emt 0:01:24]} Qe6 {[%emt 0:01:29]} 53. Rce3 {[%emt 0:01:56]} Bxf3+ {[%emt 0:01:09]} 54. Kxf3 {[%emt 0:00:23]} Qd5+ {[%emt 0:00:43]} 55. Ke2 {[%emt 0:00:15]} Qg2+ {[%emt 0:00:38]} 56. Kd3 {[%emt 0:01:39]} Rd7+ {[%emt 0:01:14]} 57. Kc3 {[%emt 0:03:43]} Qd2+ {[%emt 0:00:36]} 58. Kc4 {[%emt 0:00:45]} Qd5+ {[%emt 0:00:58]} 59. Kb4 {[%emt 0:00:53]} Rxe3 {[%emt 0:04:06]} (59... Rb7+ $142 60. Kc3 Rxe3+ 61. Bxe3 Rc7+ 62. Bc5 Rxc5+ 63. Qxc5 Qxc5+ 64. Kd3 Qd5+ 65. Ke2 Qxh1 66. Kd3 Qd5+ 67. Kc3 Nxg5 68. Kc2 Ne4 69. b4 Qc4+ 70. Kb2 Qc3+ 71. Ka2 Nd2 72. g4 Qc2+ 73. Ka3 Nc4#) 60. Qxe3 {[%emt 0:02:08]} Qd2+ {[%emt 0:00:59]} 61. Kc4 {[%emt 0:00:49]} Qc2+ {[%emt 0:02:04]} 62. Qc3 {[%emt 0:01:13]} Qxc3+ {[%emt 0:01:21]} (62... Qe4+ $142 63. Bd4 Rc7+ 64. Kb3 Rxc3+ 65. bxc3 Qxh1) 63. Kxc3 {[%emt 0:00:44][%mdl 4096] Endgame KRN-KBN} Rd1 {[%emt 0:00:56]} 64. Nf2 {[%emt 0:00:20]} Rc1+ {[%emt 0:00:06]} 65. Kb4 {[%emt 0:01:08] [#]} (65. Kd2 $142 Rxc5 66. Nxh3) 65... Rxc5 $1 {[%emt 0:00:51][%mdl 512]} 66. Nxh3 {[%emt 0:00:07] KR-KN} Rc2 {[%emt 0:02:21]} 67. b3 {[%emt 0:00:59]} Rg2 {[%emt 0:00:47]} 68. Nf4 {[%emt 0:00:30]} Rxg3 {[%emt 0:00:12] ( -> ...Rg4)} 69. Nxg6 {[%emt 0:00:07]} Rxg5 {[%emt 0:00:13] Black mates.} 70. Ne5 {[%emt 0:00:14]} f4 {[%emt 0:00:27][%cal Bf5f4,Bf4f3,Bf3f2][%mdl 32]} 71. Nf3 {[%emt 0:00:55]} Rg3 {[%emt 0:00:22]} 72. Nd2 {[%emt 0:00:17]} f3 {[%emt 0:00:36]} 73. Ka5 {[%emt 0:00:10]} f2 {[%emt 0:00:20]} 74. b4 {[%emt 0:00:09]} Ra3+ {[%emt 0:00:28]} 75. Kb6 {[%emt 0:00:09]} Kf7 {[%emt 0:00:51] Weighted Error Value: White=0.62/Black=0.35} 0-1

[Event "Mitropa Cup Women 2022"]
[Site "Corte"]
[Date "2022.05.08"]
[Round "9.3"]
[White "Mihok-Juhasz, Barbara"]
[Black "Sedina, Elena"]
[Result "1-0"]
[ECO "B03"]
[WhiteElo "2202"]
[BlackElo "2249"]
[Annotator "TA"]
[PlyCount "95"]
[EventDate "2022.04.30"]
[EventType "team-tourn"]
[EventCountry "FRA"]
[SourceTitle "playchess.com"]
[Source "ChessBase"]
[SourceQuality "1"]
[WhiteTeam "Hungary"]
[BlackTeam "Italy"]
[WhiteTeamCountry "HUN"]
[BlackTeamCountry "ITA"]
[TimeControl "40/5400+30:1800+30"]

{[%evp 16,95,44,41,111,90,111,106,132,31,26,14,122,113,122,114,138,138,139,161,185,184,178,180,285,277,375,357,384,381,386,354,381,326,401,408,466,461,482,495,581,560,635,668,750,593,747,615,607,569,603,591,582,595,591,598,614,618,573,593,687,694,722,716,707,707,793,768,838,807,882,810,842,831,837,816,833,830,809,804,784,766]} 1. e4 {[%emt 0:00:03][%cal Be2e4,Be4e5][%mdl 32]} Nf6 {[%emt 0:13:53]} 2. e5 {[%emt 0:00:05]} Nd5 {[%emt 0:00:04]} 3. c4 {[%emt 0:00:04]} Nb6 {[%emt 0:00:06]} 4. d4 {[%emt 0:00:03]} d6 {[%emt 0:00:05]} 5. exd6 {[%emt 0:00:04]} cxd6 {[%emt 0:01:57]} 6. Nc3 {[%emt 0:00:04]} g6 {[%emt 0:00:12]} 7. Be3 {[%emt 0:00:04]} Bg7 {[%emt 0:00:10]} 8. Rc1 {[%emt 0:00:03]} O-O {[%emt 0:00:14]} 9. b3 {[%emt 0:00:02]} d5 {[%emt 0:12:30] B03: Alekhine's Defence: Four Pawns Attack.} (9... e5 $14) 10. c5 $16 {[%emt 0:12:36][%cal Bc4c5,Bc5b6][%mdl 32]} Nc6 {[%emt 0:00:34][%cal Oe7e5]} 11. cxb6 {[%emt 0:21:20] aiming for Bb5.} e5 {[%emt 0:00:13][%cal Re5d4] White is better.} 12. Nb5 {[%emt 0:13:26] [#]} (12. Nge2 $1 $16 {Threatens to win with dxe5.} exd4 13. Nxd4) 12... exd4 $146 {[%emt 0:06:41]} ({Predecessor:} 12... axb6 13. a4 Re8 14. Be2 exd4 15. Nxd4 Bxd4 16. Bxd4 Qg5 17. Be3 Qe7 18. Nf3 d4 19. Nxd4 Nxd4 20. Qxd4 Be6 21. O-O Bxb3 22. Bb5 Red8 23. Qxb6 Bxa4 24. Bxa4 {1-0 (24) Jimenez Hernandez,C (2313)-O'Neill Y Daneiko,J (1924) Altea 2021}) 13. Bf4 {[%emt 0:06:39]} (13. Nxd4 Bxd4 14. Bxd4 Re8+ 15. Ne2 axb6 $14) 13... Qf6 {[%emt 0:53:22] [#]} (13... Bf5 $11) 14. Qd2 $1 $16 {[%emt 0:03:07] Hoping for Nc7. White stays focused until the end.} ({Much worse is} 14. Ne2 $6 axb6 15. Qd2 d3 $11) 14... axb6 {[%emt 0:02:41]} 15. Bd3 {[%emt 0:06:22]} Bf5 {[%emt 0:04:28]} (15... Rxa2 $2 16. Qxa2 Qxf4 17. Ne2 $18) 16. Bxf5 {[%emt 0:04:29]} Qxf5 {[%emt 0:00:02]} 17. Ne2 {[%emt 0:00:07]} d3 {[%emt 0:00:44] [#]} 18. Ng3 {[%emt 0:00:25]} Qe6+ {[%emt 0:00:36]} 19. Kf1 {[%emt 0:00:15][%cal Be1f1,Bf1g1,Bg1h2][%mdl 32] Nc7 is the strong threat.} Qd7 {[%emt 0:00:46]} (19... Qf6 {was necessary.}) 20. a4 $18 {[%emt 0:03:37]} ({Wrong is} 20. Qxd3 $2 Nb4 21. Qf3 (21. Qe2 $2 Rxa2 22. Qf3 Qxb5+ 23. Kg1 Nd3 $19) 21... Nxa2 $19) 20... Na5 {[%emt 0:00:34]} 21. Qxd3 {[%emt 0:01:51]} Rac8 {[%emt 0:00:28]} 22. Rd1 {[%emt 0:05:03]} h5 {[%emt 0:00:29]} 23. h3 {[%emt 0:05:59]} Rfd8 {[%emt 0:00:37]} 24. Kg1 {[%emt 0:03:00]} Nc6 25. Kh2 Ne5 {[%emt 0:00:51]} 26. Qd2 {[%emt 0:01:27] White is clearly winning.} h4 {[%emt 0:00:17]} 27. Ne2 {[%emt 0:00:27]} d4 {[%emt 0:00:41]} 28. Nexd4 {[%emt 0:02:36]} Qd5 {[%emt 0:00:37]} 29. Rhe1 {[%emt 0:00:44]} Bf6 {[%emt 0:00:23]} 30. Kg1 {[%emt 0:00:45]} Qc5 {[%emt 0:00:30]} 31. Rc1 {[%emt 0:02:12]} Qd5 {[%emt 0:00:02]} 32. Rxc8 {[%emt 0:00:42]} Rxc8 {[%emt 0:00:01]} 33. Bxe5 {[%emt 0:00:29]} Bxe5 {[%emt 0:00:06]} 34. Nf3 {[%emt 0:00:02][%cal Bd4f3,Bf3d2,Bd2c4][%mdl 32]} Qxd2 {[%emt 0:01:38]} 35. Nxd2 {[%emt 0:00:04] Pair of Knights!} Bf4 {[%emt 0:00:15]} 36. Nc4 {[%emt 0:02:27]} Rd8 {[%emt 0:00:45]} 37. Kf1 {[%emt 0:00:17]} Rd3 {[%emt 0:00:07]} 38. Rb1 {[%emt 0:00:02]} Kf8 {[%emt 0:00:59]} 39. Ke2 {[%emt 0:00:19]} Rd7 {[%emt 0:00:09]} 40. Rd1 {[%emt 0:00:27]} Re7+ {[%emt 0:00:04]} 41. Kf3 {[%emt 0:30:04]} Bg5 {[%emt 0:30:51]} 42. Nxb6 {[%emt 0:02:27]} Re6 {[%emt 0:00:00]} 43. Nd7+ {[%emt 0:00:00]} Ke7 {[%emt 0:00:00]} 44. Nc5 {[%emt 0:00:00][%csl LRb7,LRe6]} Rf6+ {[%emt 0:00:00]} 45. Ke2 {[%emt 0:00:00]} b6 {[%emt 0:00:00]} 46. Ne4 {[%emt 0:00:00][%csl LRf6,LRg5]} Re6 {[%emt 0:00:00]} 47. Kf3 {[%emt 0:00:00]} Bh6 {[%emt 0:00:00]} 48. Nd4 {[%emt 0:00:00] Weighted Error Value: White=0.17 (very precise) /Black=0.34} 1-0